bitfinex-derivatives/quotes_BNBF0:USTF0_20250417
["timestamp","ask_amount","ask_price","bid_price","bid_amount"]
[1744914645058,0.29826508,593.63,592.56,1.76551856]
[1744914645259,0.29826508,593.64,592.56,1.76551856]
[1744914646055,0.33689884,593.65,592.56,1.76551856]
[1744914646260,0.29826455,593.64,592.56,1.76551856]
[1744914652463,0.33689884,593.65,592.56,1.76551856]
[1744914652768,0.29826474,593.64,592.56,1.76551856]
[1744914654169,0.29826483,593.63,592.56,1.76551856]
[1744914654369,0.29826483,593.64,592.56,1.76551856]
[1744914654569,0.29826483,593.63,592.56,1.76551856]
[1744914654770,0.29826483,593.64,592.56,1.76551856]
[1744914655770,0.29826474,593.63,592.56,1.76551856]
[1744914656070,0.29826474,593.62,592.56,1.76551856]
[1744914656270,0.29826474,593.64,592.56,1.76551856]
[1744914657371,0.29826756,593.63,592.56,1.76551856]
[1744914657568,0.29826756,593.64,592.56,1.76551856]
[1744914657773,0.29826756,593.63,592.56,1.76551856]
[1744914657967,0.29826756,593.62,592.56,1.76551856]
[1744914658172,0.29826756,593.64,592.56,1.76551856]
[1744914658372,0.29826756,593.63,592.56,1.76551856]
[1744914658575,0.29826756,593.64,592.56,1.76551856]
[1744914658873,0.29826756,593.63,592.56,1.76551856]
[1744914659073,0.29826756,593.64,592.56,1.76551856]
[1744914659274,0.29826756,593.63,592.56,1.76551856]
[1744914659572,0.29826756,593.62,592.56,2.24751856]
[1744914659773,0.29826756,593.64,592.56,2.24751856]
[1744914659974,0.29826756,593.63,592.56,2.24751856]
[1744914660174,0.29826756,593.64,592.56,2.24751856]
[1744914660375,0.29826756,593.63,592.56,2.24751856]
[1744914660576,0.82189884,593.65,592.56,2.24751856]
[1744914660770,0.29827105,593.64,592.56,2.24751856]
[1744914661674,0.29827105,593.64,592.56,2.37451856]
[1744914663277,0.82189884,593.65,592.56,2.37451856]
[1744914663476,0.29827616,593.64,592.56,2.37451856]
[1744914666279,0.29827616,593.64,592.56,2.89851856]
[1744914676492,0.29827616,593.64,592.56,3.20551856]
[1744914679195,0.29827616,593.64,592.56,3.92951856]
[1744914679394,0.82189884,593.65,592.56,3.92951856]
[1744914679596,0.29826672,593.64,592.56,3.92951856]
[1744914680191,0.82189884,593.65,592.56,3.92951856]
[1744914681296,0.29826671,593.64,592.56,3.92951856]
[1744914682295,0.29826671,593.63,592.56,3.92951856]
[1744914682495,0.29826671,593.62,592.56,3.92951856]
[1744914682693,0.29826671,593.64,592.56,3.92951856]
[1744914682889,1.6245534,593.65,592.56,3.92951856]
[1744914683089,0.29826649,593.64,592.56,3.92951856]
[1744914684095,0.535,593.63,592.56,3.92951856]
[1744914684289,0.29826649,593.62,592.56,3.92951856]
[1744914684493,0.535,593.63,592.56,3.92951856]
[1744914684690,0.29826694,593.62,592.56,3.92951856]
[1744914689296,0.535,593.63,592.56,3.92951856]
[1744914689501,0.29826669,593.62,592.56,3.92951856]
[1744914695707,0.535,593.63,592.56,3.92951856]
[1744914695909,0.29826235,593.62,592.56,3.92951856]
[1744914698911,0.535,593.63,592.56,3.92951856]
[1744914699110,0.2982569,593.62,592.56,3.92951856]
[1744914700512,0.535,593.63,592.56,3.92951856]
[1744914700811,0.29825686,593.62,592.56,3.92951856]
[1744914703817,0.535,593.63,592.56,3.92951856]
[1744914704017,0.29825628,593.62,592.56,3.92951856]
[1744914705419,0.535,593.63,592.56,3.92951856]
[1744914705616,0.29825651,593.62,592.56,3.92951856]
[1744914712419,0.29825651,593.64,592.56,3.92951856]
[1744914713427,0.33689884,593.65,592.56,3.92951856]
[1744914713626,0.29825627,593.64,592.56,3.92951856]
[1744914715029,0.33689884,593.65,592.56,3.92951856]
[1744914715227,0.706,593.63,592.56,3.92951856]
[1744914715423,0.29825628,593.62,592.56,3.92951856]
[1744914718131,0.706,593.63,592.56,3.92951856]
[1744914718432,0.29825658,593.62,592.56,3.92951856]
[1744914719729,0.706,593.63,592.56,3.92951856]
[1744914719930,0.29825688,593.62,592.56,3.92951856]
[1744914724033,0.706,593.63,592.56,3.92951856]
[1744914724328,0.29825654,593.62,592.56,3.92951856]
[1744914725634,0.706,593.63,592.56,3.92951856]
[1744914725833,0.29825634,593.62,592.56,3.92951856]
[1744914728536,0.29825634,593.61,592.56,3.92951856]
[1744914728836,0.29825634,593.64,592.56,3.92951856]
[1744914729033,0.29825634,593.63,592.56,3.92951856]
[1744914729336,0.29825634,593.64,592.56,3.92951856]
[1744914729532,0.29825634,593.63,592.56,3.92951856]
[1744914729737,0.29825634,593.64,592.56,3.92951856]
[1744914729935,0.29825634,593.62,592.56,3.92951856]
[1744914730136,0.29825634,593.61,592.56,3.92951856]
[1744914730438,0.29825634,593.6,592.56,3.92951856]
[1744914730736,0.29825634,593.59,592.56,3.92951856]
[1744914731932,0.648,593.6,592.56,3.92951856]
[1744914732132,0.29825911,593.59,592.56,3.92951856]
[1744914741343,0.648,593.6,592.56,3.92951856]
[1744914741543,0.29825098,593.58,592.56,3.92951856]
[1744914741744,0.29825098,593.57,592.56,3.92951856]
[1744914741945,0.29825098,593.59,592.56,3.92951856]
[1744914742244,0.29825098,593.58,592.56,3.92951856]
[1744914742448,0.29825098,593.59,592.56,3.92951856]
[1744914742744,0.29825098,593.58,592.56,3.92951856]
[1744914742942,0.648,593.6,592.56,3.92951856]
[1744914743146,0.29825124,593.59,592.56,3.92951856]
[1744914747744,0.648,593.6,592.56,3.92951856]
[1744914747945,0.29825141,593.59,592.56,3.92951856]
[1744914750947,0.29825135,593.58,592.56,3.92951856]
[1744914751150,0.29825135,593.59,592.56,3.92951856]
[1744914751353,0.29825135,593.57,592.56,3.92951856]
[1744914751551,0.29825135,593.56,592.56,3.92951856]
[1744914751852,0.29825135,593.55,592.56,3.92951856]
[1744914752153,0.29825135,593.59,592.56,3.92951856]
[1744914752355,0.29825135,593.58,592.56,3.92951856]
[1744914752554,0.29825111,593.57,592.56,3.92951856]
[1744914752749,0.29825111,593.59,592.56,3.92951856]
[1744914752953,0.29825111,593.58,592.56,3.92951856]
[1744914753153,0.29825111,593.59,592.56,3.92951856]
[1744914753449,0.29825111,593.58,592.56,3.92951856]
[1744914753848,0.29825111,593.57,592.56,3.92951856]
[1744914754048,0.29825142,593.56,592.56,3.92951856]
[1744914754250,0.29825142,593.55,592.56,3.92951856]
[1744914754452,0.29825142,593.59,592.56,3.92951856]
[1744914754958,0.29825142,593.64,592.56,3.92951856]
[1744914755261,0.29825142,593.63,592.56,3.92951856]
[1744914755463,0.29825142,593.64,592.56,3.92951856]
[1744914757456,0.783,593.63,592.56,3.92951856]
[1744914757662,0.29825142,593.62,592.56,3.92951856]
[1744914760269,0.783,593.63,592.56,3.92951856]
[1744914760470,0.29825202,593.62,592.56,3.92951856]
[1744914761770,0.783,593.63,592.56,3.92951856]
[1744914761973,0.29825266,593.61,592.56,3.92951856]
[1744914762172,0.29825266,593.6,592.56,3.92951856]
[1744914762472,0.29825266,593.59,592.56,3.92951856]
[1744914762666,0.29825266,593.62,592.56,3.92951856]
[1744914762866,0.29825266,593.61,592.56,3.92951856]
[1744914763070,0.29825266,593.62,592.56,3.92951856]
[1744914763265,0.29825266,593.61,592.56,3.92951856]
[1744914763473,0.29825266,593.62,592.56,3.92951856]
[1744914765372,0.29825232,593.61,592.56,3.92951856]
[1744914765575,0.29825232,593.62,592.56,3.92951856]
[1744914765769,0.783,593.63,592.56,3.92951856]
[1744914765770,0.29825232,593.61,592.56,3.92951856]
[1744914765970,0.29825232,593.6,592.56,3.92951856]
[1744914766173,0.29825232,593.62,592.56,3.92951856]
[1744914766475,0.29825232,593.61,592.56,3.92951856]
[1744914766676,0.783,593.63,592.56,3.92951856]
[1744914766868,0.29825231,593.62,592.56,3.92951856]
[1744914769770,0.783,593.63,592.56,3.92951856]
[1744914769971,0.29825202,593.62,592.56,3.92951856]
[1744914777779,0.29824843,593.61,592.56,3.92951856]
[1744914777984,0.29824843,593.62,592.56,3.92951856]
[1744914780785,0.783,593.63,592.56,3.92951856]
[1744914780986,0.29824843,593.62,592.56,3.92951856]
[1744914781985,0.783,593.63,592.56,3.92951856]
[1744914782282,0.29824733,593.62,592.56,3.92951856]
[1744914787088,0.29824733,593.64,592.56,3.92951856]
[1744914787289,0.29824733,593.63,592.56,3.92951856]
[1744914787491,0.29824733,593.64,592.56,3.92951856]
[1744914788390,0.33689884,593.65,592.56,3.92951856]
[1744914788592,0.29824814,593.64,592.56,3.92951856]
[1744914789993,0.33689884,593.65,592.56,3.92951856]
[1744914790195,0.724,593.63,592.56,3.92951856]
[1744914790394,0.29824994,593.62,592.56,3.92951856]
[1744914796397,0.724,593.63,592.56,3.92951856]
[1744914796698,0.2982502,593.62,592.56,3.92951856]
[1744914807709,0.724,593.63,592.56,3.92951856]
[1744914807911,0.29825355,593.62,592.56,3.92951856]
[1744914808405,0.29825355,593.64,592.56,3.92951856]
[1744914810812,0.776,593.63,592.56,3.92951856]
[1744914811005,0.29825047,593.62,592.56,3.92951856]
[1744914814213,0.776,593.63,592.56,3.92951856]
[1744914814413,0.29825607,593.62,592.56,3.92951856]
[1744914815909,0.29825578,593.61,592.56,3.92951856]
[1744914816115,0.29825578,593.62,592.56,3.92951856]
[1744914816311,0.29825578,593.61,592.56,3.92951856]
[1744914816512,0.29825578,593.62,592.56,3.92951856]
[1744914816713,0.29825578,593.61,592.56,3.92951856]
[1744914817008,0.29825578,593.6,592.56,3.92951856]
[1744914817213,0.29825578,593.62,592.56,3.92951856]
[1744914819015,0.776,593.63,592.56,3.92951856]
[1744914819213,0.29825568,593.62,592.56,3.92951856]
[1744914821916,0.776,593.63,592.56,3.92951856]
[1744914822109,0.29825362,593.62,592.56,3.92951856]
[1744914823015,0.29825362,593.61,592.56,3.92951856]
[1744914823213,0.29825362,593.64,592.56,3.92951856]
[1744914823514,0.29825362,593.63,592.56,3.92951856]
[1744914823818,0.29825362,593.62,592.56,3.92951856]
[1744914824017,0.29825331,593.61,592.56,3.92951856]
[1744914824314,0.29825331,593.64,592.56,3.92951856]
[1744914824520,0.29825331,593.63,592.56,3.92951856]
[1744914824814,0.29825331,593.62,592.56,3.92951856]
[1744914825018,0.29825331,593.64,592.56,3.92951856]
[1744914825519,0.33689884,593.65,592.56,3.92951856]
[1744914825721,0.29825362,593.64,592.56,3.92951856]
[1744914825920,0.95725362,593.64,592.56,3.92951856]
[1744914826115,0.29825362,593.63,592.56,3.92951856]
[1744914831922,0.659,593.64,592.56,3.92951856]
[1744914832126,0.29825293,593.63,592.56,3.92951856]
[1744914833629,0.659,593.64,592.56,3.92951856]
[1744914833827,0.29825402,593.63,592.56,3.92951856]
[1744914836733,0.659,593.64,592.56,3.92951856]
[1744914836934,0.29824931,593.63,592.56,3.92951856]
[1744914839937,0.659,593.64,592.56,3.92951856]
[1744914840136,0.29824816,593.63,592.56,3.92951856]
[1744914842737,0.29825763,593.62,592.56,3.92951856]
[1744914842937,0.29825763,593.63,592.56,3.92951856]
[1744914843141,0.29825763,593.62,592.56,3.92951856]
[1744914843344,0.29825763,593.63,592.56,3.92951856]
[1744914844242,0.659,593.64,592.56,3.92951856]
[1744914844446,0.29828064,593.63,592.56,3.92951856]
[1744914844844,0.29349875,593.62,592.56,3.92951856]
[1744914845043,0.29828064,593.61,592.56,3.92951856]
[1744914847448,0.29349875,593.62,592.56,3.92951856]
[1744914847647,0.29828842,593.61,592.56,3.92951856]
[1744914849747,0.659,593.64,592.56,3.92951856]
[1744914852850,0.33689884,593.65,592.56,3.92951856]
[1744914856655,0.519,593.64,592.56,3.92951856]
[1744914858157,0.29827473,593.63,592.56,3.92951856]
[1744914862255,0.519,593.64,592.56,3.92951856]
[1744914862857,0.29349751,593.63,592.56,3.92951856]
[1744914863057,0.29827942,593.62,592.56,3.92951856]
[1744914863356,0.63519529,593.62,592.56,3.92951856]
[1744914863557,0.33692154,593.61,592.56,3.92951856]
[1744914863853,0.29830404,593.6,592.56,3.92951856]
[1744914864559,0.33692154,593.61,592.56,3.92951856]
[1744914864755,0.29831001,593.6,592.56,3.92951856]
[1744914865258,0.33692154,593.61,592.56,3.92951856]
[1744914865454,0.29830711,593.6,592.56,3.92951856]
[1744914865957,0.29351484,593.59,592.56,3.92951856]
[1744914866158,0.29830711,593.58,592.56,3.92951856]
[1744914866857,0.29351484,593.59,592.56,3.92951856]
[1744914867057,0.29831058,593.58,592.56,3.92951856]
[1744914868559,0.33694425,593.57,592.56,3.92951856]
[1744914868958,0.29831058,593.56,592.56,3.92951856]
[1744914869159,0.3369556,593.55,592.56,3.92951856]
[1744914869358,0.29831058,593.54,592.56,3.92951856]
[1744914870162,0.33696696,593.53,592.56,3.92951856]
[1744914870354,0.29831058,593.52,592.56,3.92951856]
[1744914870554,0.33697831,593.51,592.56,3.92951856]
[1744914870757,0.29831058,593.5,592.56,3.92951856]
[1744914871859,0.29355198,593.49,592.56,3.92951856]
[1744914872053,0.29831058,593.48,592.56,3.92951856]
[1744914873160,0.29355198,593.49,592.56,3.92951856]
[1744914873361,0.29834374,593.48,592.56,3.92951856]
[1744914873763,0.29834374,593.5,592.56,3.92951856]
[1744914874865,0.29355198,593.49,592.56,3.92951856]
[1744914875066,0.29834374,593.48,592.56,3.92951856]
[1744914876465,0.29355198,593.49,592.56,3.92951856]
[1744914876666,0.29834632,593.48,592.56,3.92951856]
[1744914876860,0.29834632,593.47,592.56,3.92951856]
[1744914877065,0.29834632,593.5,592.56,3.92951856]
[1744914877365,0.29834632,593.49,592.56,3.92951856]
[1744914877563,0.29834632,593.5,592.56,3.92951856]
[1744914877763,0.29834632,593.49,592.56,3.92951856]
[1744914877963,0.29355198,593.48,592.56,3.92951856]
[1744914878164,0.29834553,593.47,592.56,3.92951856]
[1744914879964,0.29834553,593.5,592.56,3.92951856]
[1744914880468,0.33697831,593.51,592.56,3.92951856]
[1744914885273,0.569,593.5,592.56,3.92951856]
[1744914890473,0.29830116,593.49,592.56,3.92951856]
[1744914892577,0.569,593.5,592.56,3.92951856]
[1744914892774,0.2982995,593.49,592.56,3.92951856]
[1744914894173,0.569,593.5,592.56,3.92951856]
[1744914894378,0.29829585,593.49,592.56,3.92951856]
[1744914900576,0.33697831,593.51,592.56,3.92951856]
[1744914900781,0.29830016,593.48,592.56,3.92951856]
[1744914901075,0.29830016,593.47,592.56,3.92951856]
[1744914901381,0.29830016,593.5,592.56,3.92951856]
[1744914901680,0.29830016,593.49,592.56,3.92951856]
[1744914901873,0.29829761,593.48,592.56,3.92951856]
[1744914902077,0.29829761,593.47,592.56,3.92951856]
[1744914902276,0.29829761,593.5,592.56,3.92951856]
[1744914902478,0.33697831,593.51,592.56,3.92951856]
[1744914902479,0.29829761,593.49,592.56,3.92951856]
[1744914902678,0.29829761,593.48,592.56,3.92951856]
[1744914902879,0.29829761,593.5,592.56,3.92951856]
[1744914903077,0.29829761,593.49,592.56,3.92951856]
[1744914903281,0.29829761,593.48,592.56,3.92951856]
[1744914903481,0.29829761,593.47,592.56,3.92951856]
[1744914903682,0.29829761,593.5,592.56,3.92951856]
[1744914903883,0.29829761,593.49,592.56,3.92951856]
[1744914904082,0.33697831,593.51,592.56,3.92951856]
[1744914904083,0.29829761,593.5,592.56,3.92951856]
[1744914904280,0.29829761,593.49,592.56,3.92951856]
[1744914904481,0.776,593.49,592.56,3.92951856]
[1744914904781,0.29829761,593.48,592.56,3.92951856]
[1744914904986,0.776,593.49,592.56,3.92951856]
[1744914905182,0.29829578,593.48,592.56,3.92951856]
[1744914908186,0.776,593.49,592.56,3.92951856]
[1744914908393,0.29828057,593.48,592.56,3.92951856]
[1744914909894,0.776,593.49,592.56,3.92951856]
[1744914910191,0.29828396,593.48,592.56,3.92951856]
[1744914911492,0.776,593.49,592.56,3.92951856]
[1744914911693,0.29828322,593.48,592.56,3.92951856]
[1744914921600,0.776,593.49,592.56,3.92951856]
[1744914923400,0.33697831,593.51,592.56,3.92951856]
[1744914927004,0.555,593.5,592.56,3.92951856]
[1744914931509,0.29827834,593.49,592.56,3.92951856]
[1744914935717,0.555,593.5,592.56,3.92951856]
[1744914935914,0.29827834,593.48,592.56,3.92951856]
[1744914936114,0.29827834,593.47,592.56,3.92951856]
[1744914936314,0.29827834,593.49,592.56,3.92951856]
[1744914943823,0.555,593.5,592.56,3.92951856]
[1744914944017,0.29827809,593.49,592.56,3.92951856]
[1744914949424,0.29827809,593.48,592.56,3.92951856]
[1744914949623,0.29827809,593.5,592.56,3.92951856]
[1744914949821,0.29827809,593.49,592.56,3.92951856]
[1744914950023,0.29827809,593.5,592.56,3.92951856]
[1744914950223,0.29827809,593.49,592.56,3.92951856]
[1744914950417,0.29827809,593.5,592.56,3.92951856]
[1744914950620,0.29827809,593.49,592.56,3.92951856]
[1744914950822,0.29827809,593.5,592.56,3.92951856]
[1744914951020,0.29827809,593.49,592.56,3.92951856]
[1744914951220,0.29827809,593.5,592.56,3.92951856]
[1744914951420,0.29827809,593.49,592.56,3.92951856]
[1744914951619,0.29827809,593.48,592.56,3.92951856]
[1744914952022,0.29827809,593.5,592.56,3.92951856]
[1744914952225,0.29827809,593.49,592.56,3.92951856]
[1744914952426,0.29827809,593.5,592.56,3.92951856]
[1744914952927,0.596,593.49,592.56,3.92951856]
[1744914953126,0.29827809,593.48,592.56,3.92951856]
[1744914961134,0.596,593.49,592.56,3.92951856]
[1744914961434,0.29825018,593.48,592.56,3.92951856]
[1744914962533,0.596,593.49,592.56,3.92951856]
[1744914962834,0.29825287,593.48,592.56,3.92951856]
[1744914967233,0.29825287,593.5,592.56,3.92951856]
[1744914967434,0.29825287,593.49,592.56,3.92951856]
[1744914967736,0.29825287,593.5,592.56,3.92951856]
[1744914968030,0.29825287,593.49,592.56,3.92951856]
[1744914968229,0.29825287,593.5,592.56,3.92951856]
[1744914969738,0.742,593.49,592.56,3.92951856]
[1744914969936,0.29825287,593.48,592.56,3.92951856]
[1744914973740,0.742,593.49,592.56,3.92951856]
[1744914973941,0.29825571,593.48,592.56,3.92951856]
[1744914975341,0.742,593.49,592.56,3.92951856]
[1744914975541,0.29825572,593.48,592.56,3.92951856]
[1744914976945,0.742,593.49,592.56,3.92951856]
[1744914977245,0.29825611,593.48,592.56,3.92951856]
[1744914980146,0.742,593.49,592.56,3.92951856]
[1744914980342,0.29825884,593.48,592.56,3.92951856]
[1744914982040,0.29825884,593.5,592.56,3.92951856]
[1744914982245,0.29825884,593.49,592.56,3.92951856]
[1744914982546,0.29825884,593.5,592.56,3.92951856]
[1744914982744,0.29825884,593.49,592.56,3.92951856]
[1744914983044,0.29825884,593.48,592.56,3.92951856]
[1744914983250,0.29825884,593.5,592.56,3.92951856]
[1744914983448,0.33697831,593.51,592.56,3.92951856]
[1744914983449,0.29825884,593.49,592.56,3.92951856]
[1744914983647,0.29825884,593.5,592.56,3.92951856]
[1744914983846,0.29825884,593.49,592.56,3.92951856]
[1744914984048,0.29825884,593.5,592.56,3.92951856]
[1744914985152,0.486,593.49,592.56,3.92951856]
[1744914985351,0.29825884,593.48,592.56,3.92951856]
[1744914986553,0.486,593.49,592.56,3.92951856]
[1744914986747,0.29825854,593.48,592.56,3.92951856]
[1744914987353,0.486,593.49,592.56,3.92951856]
[1744914987553,0.29825886,593.48,592.56,3.92951856]
[1744914989757,0.486,593.49,592.56,3.92951856]
[1744914989956,0.29825855,593.48,592.56,3.92951856]
[1744914996163,0.486,593.49,592.56,3.92951856]
[1744914997064,0.2982563,593.48,592.56,3.92951856]
[1744915002370,0.486,593.49,592.56,3.92951856]
[1744915002569,0.2982575,593.48,592.56,3.92951856]
[1744915004370,0.2982575,593.5,592.56,3.92951856]
[1744915004571,0.2982575,593.47,592.56,3.92951856]
[1744915004871,0.2982575,593.46,592.56,3.92951856]
[1744915005170,0.2982575,593.45,592.56,3.92951856]
[1744915005469,0.2982575,593.5,592.56,3.92951856]
[1744915005664,0.2982575,593.49,592.56,3.92951856]
[1744915005865,0.2982575,593.5,592.56,3.92951856]
[1744915007271,0.65,593.49,592.56,3.92951856]
[1744915007470,0.2982575,593.48,592.56,3.92951856]
[1744915012577,0.65,593.49,592.56,3.92951856]
[1744915012774,0.29825781,593.48,592.56,3.92951856]
[1744915014178,0.65,593.49,592.56,3.92951856]
[1744915014379,0.29825779,593.47,592.56,3.92951856]
[1744915014578,0.29825779,593.46,592.56,3.92951856]
[1744915014780,0.29825779,593.48,592.56,3.92951856]
[1744915015780,0.65,593.49,592.56,3.92951856]
[1744915015978,0.29825782,593.48,592.56,3.92951856]
[1744915018982,0.65,593.49,592.56,3.92951856]
[1744915019179,0.2982578,593.48,592.56,3.92951856]
[1744915020583,0.65,593.49,592.56,3.92951856]
[1744915020784,0.2982575,593.48,592.56,3.92951856]
[1744915024785,0.65,593.49,592.56,3.92951856]
[1744915024987,0.29825783,593.48,592.56,3.92951856]
[1744915026386,0.65,593.49,592.56,3.92951856]
[1744915026587,0.29825566,593.48,592.56,3.92951856]
[1744915031289,0.2982544,593.47,592.56,3.92951856]
[1744915031488,0.2982544,593.46,592.56,3.92951856]
[1744915031685,0.2982544,593.48,592.56,3.92951856]
[1744915031890,0.2982544,593.47,592.56,3.92951856]
[1744915032086,0.2982544,593.48,592.56,3.92951856]
[1744915032290,0.2982544,593.47,592.56,3.92951856]
[1744915032590,0.2982544,593.46,592.56,3.92951856]
[1744915032790,0.2982544,593.48,592.56,3.92951856]
[1744915032989,0.2982544,593.47,592.56,3.92951856]
[1744915033187,0.2982544,593.48,592.56,3.92951856]
[1744915033390,0.2982544,593.47,592.56,3.92951856]
[1744915033691,0.2982544,593.46,592.56,3.92951856]
[1744915033992,0.2982544,593.48,592.56,3.92951856]
[1744915034184,0.2982544,593.45,592.56,3.92951856]
[1744915034388,0.65,593.49,592.56,3.92951856]
[1744915034587,0.29825751,593.48,592.56,3.92951856]
[1744915035390,0.29825751,593.5,592.56,3.92951856]
[1744915035588,0.33697831,593.51,592.56,3.92951856]
[1744915035589,0.29825751,593.49,592.56,3.92951856]
[1744915035789,0.29825751,593.5,592.56,3.92951856]
[1744915038287,0.534,593.49,592.56,3.92951856]
[1744915038492,0.29825751,593.48,592.56,3.92951856]
[1744915047199,0.534,593.49,592.56,3.92951856]
[1744915047392,0.29825094,593.48,592.56,3.92951856]
[1744915050598,0.534,593.49,592.56,3.92951856]
[1744915050797,0.29825101,593.48,592.56,3.92951856]
[1744915051993,0.534,593.49,592.56,3.92951856]
[1744915052298,0.29825085,593.48,592.56,3.92951856]
[1744915060409,0.29825085,593.5,592.56,3.92951856]
[1744915060608,0.29825085,593.49,592.56,3.92951856]
[1744915060809,0.29825085,593.5,592.56,3.92951856]
[1744915062613,0.33697831,593.51,592.56,3.92951856]
[1744915062812,0.29825327,593.5,592.56,3.92951856]
[1744915063507,0.799,593.49,592.56,3.92951856]
[1744915063707,0.29825327,593.48,592.56,3.92951856]
[1744915072838,0.799,593.49,592.56,3.92951856]
[1744915073124,0.29825314,593.48,592.56,3.92951856]
[1744915081927,0.29825314,593.47,592.56,3.92951856]
[1744915082122,0.29825349,593.46,592.56,3.92951856]
[1744915082426,0.29825349,593.45,592.56,3.92951856]
[1744915082626,0.29825349,593.5,592.56,3.92951856]
[1744915082827,0.29825349,593.49,592.56,3.92951856]
[1744915083024,0.29825349,593.5,592.56,3.92951856]
[1744915083627,0.33697831,593.51,592.56,3.92951856]
[1744915083927,0.29825318,593.5,592.56,3.92951856]
[1744915085327,0.58,593.49,592.56,3.92951856]
[1744915085523,0.29825318,593.48,592.56,0.33751856]
[1744915085724,0.29825318,593.5,592.56,0.33751856]
[1744915086826,0.33697831,593.51,592.56,0.33751856]
[1744915087029,0.29825274,593.5,592.56,0.33751856]
[1744915088230,0.29825274,593.5,592.56,0.64451856]
[1744915088630,0.524,593.49,592.56,2.00951856]
[1744915088829,0.29825274,593.48,592.56,2.00951856]
[1744915089027,0.29825274,593.48,592.56,2.75451856]
[1744915089426,0.29825274,593.48,592.56,3.28251856]
[1744915089626,0.29825274,593.48,592.56,4.07451856]
[1744915090230,0.29825272,593.47,592.56,4.07451856]
[1744915090426,0.29825272,593.48,592.56,4.07451856]
[1744915091734,0.524,593.49,592.56,4.07451856]
[1744915091932,0.2982529,593.48,592.56,4.07451856]
[1744915095937,0.2982524,593.47,592.56,4.07451856]
[1744915096138,0.2982524,593.48,592.56,4.07451856]
[1744915096338,0.2982524,593.47,592.56,4.07451856]
[1744915096539,0.524,593.49,592.56,4.07451856]
[1744915096838,0.2982524,593.48,592.56,4.07451856]
[1744915099740,0.524,593.49,592.56,4.07451856]
[1744915099935,0.29825244,593.48,592.56,4.07451856]
[1744915101339,0.524,593.49,592.56,4.07451856]
[1744915101539,0.29825262,593.48,592.56,4.07451856]
[1744915104643,0.524,593.49,592.56,4.07451856]
[1744915104841,0.29825215,593.48,592.56,4.07451856]
[1744915107942,0.29825241,593.47,592.56,4.07451856]
[1744915108142,0.29825241,593.48,592.56,4.07451856]
[1744915108338,0.29825241,593.47,592.56,4.07451856]
[1744915108540,0.29825241,593.48,592.56,4.07451856]
[1744915108738,0.29825241,593.47,592.56,4.07451856]
[1744915108943,0.29825241,593.48,592.56,4.07451856]
[1744915109144,0.29825241,593.47,592.56,4.07451856]
[1744915109342,0.29825241,593.48,592.56,4.07451856]
[1744915109538,0.29825241,593.47,592.56,4.07451856]
[1744915109743,0.29825241,593.48,592.56,4.07451856]
[1744915109940,0.29825241,593.5,592.56,4.07451856]
[1744915110243,0.29825241,593.49,592.56,4.07451856]
[1744915110545,0.29825241,593.5,592.56,4.07451856]
[1744915110744,0.29825241,593.49,592.56,4.07451856]
[1744915110940,0.29825241,593.5,592.56,4.07451856]
[1744915113139,0.793,593.49,592.56,4.07451856]
[1744915113345,0.29825241,593.48,592.56,4.07451856]
[1744915114347,0.793,593.49,592.56,4.07451856]
[1744915114542,0.29825271,593.48,592.56,4.07451856]
[1744915119252,0.793,593.49,592.56,4.07451856]
[1744915119448,0.29825257,593.48,592.56,4.07451856]
[1744915120753,0.793,593.49,592.56,4.07451856]
[1744915120953,0.2982527,593.48,592.56,4.07451856]
[1744915122855,0.29825206,593.47,592.56,4.07451856]
[1744915123056,0.29825206,593.48,592.56,4.07451856]
[1744915123353,0.29825206,593.47,592.56,4.07451856]
[1744915123557,0.29825206,593.48,592.56,4.07451856]
[1744915123757,0.29825206,593.47,592.56,4.07451856]
[1744915123959,0.29825206,593.48,592.56,4.07451856]
[1744915124258,0.29825206,593.47,592.56,4.07451856]
[1744915124458,0.29825206,593.48,592.56,4.07451856]
[1744915124658,0.29825206,593.47,592.56,4.07451856]
[1744915124859,0.29825206,593.48,592.56,4.07451856]
[1744915125661,0.793,593.49,592.56,4.07451856]
[1744915125959,0.29825238,593.48,592.56,4.07451856]
[1744915128864,0.793,593.49,592.56,4.07451856]
[1744915129065,0.29825167,593.48,592.56,4.07451856]
[1744915130564,0.793,593.49,592.56,4.07451856]
[1744915130765,0.29825178,593.48,592.56,4.07451856]
[1744915135363,0.793,593.49,592.56,4.07451856]
[1744915135567,0.29825076,593.48,592.56,4.07451856]
[1744915136971,0.793,593.49,592.56,4.07451856]
[1744915137166,0.29825078,593.48,592.56,4.07451856]
[1744915137470,0.29825078,593.47,592.56,4.07451856]
[1744915137674,0.29825078,593.5,592.56,4.07451856]
[1744915137866,0.29825078,593.49,592.56,4.07451856]
[1744915138064,0.29825078,593.5,592.56,4.07451856]
[1744915138266,0.29825078,593.48,592.56,4.07451856]
[1744915138468,0.29825078,593.47,592.56,4.07451856]